bitfinex-derivatives/quotes_SOLF0:USTF0_20250415
["timestamp","ask_amount","ask_price","bid_price","bid_amount"]
[1744734355472,0.42160657,130.06,130.0,7.7]
[1744734355666,0.42160657,130.06,129.99,30.2]
[1744734356072,0.42160657,130.06,130.05,7.6899]
[1744734356278,0.43520472,130.08,130.05,30.2]
[1744734356478,0.49431031,130.08,130.05,30.25510215]
[1744734357075,7.6893,130.06,130.05,30.25510215]
[1744734357273,7.6893,130.06,130.05,0.05510215]
[1744734359279,7.6911,130.03,130.02,30.2]
[1744734359777,7.6911,130.03,130.0,7.6928]
[1744734360280,0.05813374,130.03,130.01,7.6922]
[1744734361080,7.74933374,130.03,130.01,7.6922]
[1744734361282,0.05813374,130.03,130.01,7.6922]
[1744734361481,0.05813374,130.03,130.02,7.6917]
[1744734363079,0.05813374,130.03,130.01,7.6921]
[1744734363981,0.05813374,130.03,130.02,7.6917]
[1744734364274,0.43520472,130.08,130.0,0.05889796]
[1744734364474,0.43520472,130.08,130.04,7.6902]
[1744734364671,8.12360472,130.08,130.05,30.18]
[1744734364875,0.43520472,130.08,130.05,30.18]
[1744734365381,7.6887,130.07,130.05,30.22908423]
[1744734365584,0.48888595,130.08,130.05,30.22908423]
[1744734365881,7.689,130.07,130.05,37.91888423]
[1744734366081,0.48888595,130.08,130.05,30.22908423]
[1744734366785,0.48888595,130.08,130.06,7.6889]
[1744734367887,8.17718595,130.08,130.05,37.91888423]
[1744734368382,0.48888595,130.08,130.05,30.22908423]
[1744734368988,7.6893,130.06,130.05,30.22908423]
[1744734371390,0.48888595,130.08,130.05,30.22908423]
[1744734371989,0.48888595,130.08,130.07,7.6887]
[1744734372182,0.45870068,130.11,130.06,6.022]
[1744734372387,0.45870068,130.11,130.1,7.687]
[1744734372588,0.45870068,130.11,130.1,30.16]
[1744734372890,0.45870068,130.11,130.1,37.847]
[1744734374090,0.45870068,130.11,130.1,30.16]
[1744734374690,8.14510068,130.11,130.1,30.16]
[1744734374891,0.45870068,130.11,130.1,30.16]
[1744734375882,0.45870068,130.11,130.1,37.847]
[1744734376389,0.45870068,130.11,130.1,30.16]
[1744734376983,0.45870068,130.11,130.1,37.847]
[1744734377183,0.45870068,130.11,130.1,30.16]
[1744734378092,0.45870068,130.11,130.1,37.847]
[1744734379994,0.05122303,130.12,130.11,7.6864]
[1744734380398,0.56525822,130.15,130.1,30.16]
[1744734380593,0.56739199,130.19,130.1,30.16]
[1744734380999,8.24939199,130.19,130.16,7.6834]
[1744734381295,0.05906527,130.18,130.16,30.16]
[1744734381893,8.28167414,130.17,130.16,30.16]
[1744734382292,0.59887414,130.17,130.16,30.16]
[1744734384896,8.28167414,130.17,130.16,30.16]
[1744734385100,0.59887414,130.17,130.16,37.8434]
[1744734385500,0.05906527,130.18,130.16,30.16]
[1744734385698,0.05906527,130.18,130.17,7.6828]
[1744734386198,0.56739199,130.19,130.18,7.6822]
[1744734386400,0.66754831,130.21,130.16,30.16]
[1744734386600,0.66754831,130.21,130.17,30.14]
[1744734386801,0.66754831,130.21,130.2,7.6811]
[1744734386999,0.61433329,130.24,130.17,30.14]
[1744734387198,0.04955925,130.22,130.19,0.05731517]
[1744734387701,0.04955925,130.22,130.21,7.6805]
[1744734387897,0.04955925,130.22,130.21,37.8205]
[1744734389599,0.61433329,130.24,130.21,30.14]
[1744734389903,0.61433329,130.24,130.23,7.6793]
[1744734392004,0.72685346,130.28,130.23,552.98]
[1744734392507,0.72685346,130.28,130.27,7.6769]
[1744734392710,0.72685346,130.28,130.27,37.8169]
[1744734393211,0.72685346,130.28,130.26,7.73578786]
[1744734393409,0.72685346,130.28,130.26,0.05848786]
[1744734393805,7.6769,130.27,130.26,0.05848786]
[1744734394005,8.40685346,130.28,130.22,30.12]
[1744734394308,0.72685346,130.28,130.22,30.12]
[1744734394901,7.72711847,130.26,130.24,0.04943374]
[1744734395105,0.04961847,130.26,130.24,0.04943374]
[1744734396516,0.04961847,130.26,130.25,7.6781]
[1744734398526,0.72685346,130.28,130.27,7.6769]
[1744734398724,0.72685346,130.28,130.27,37.7769]
[1744734398928,0.79031774,130.3,130.27,30.1]
[1744734399124,0.79031774,130.3,130.29,7.6758]
[1744734399426,358.49482247,130.38,130.29,30.1]
[1744734399618,0.05557285,130.35,130.32,0.05873112]
[1744734400120,0.05557285,130.35,130.33,30.1]
[1744734401429,540.53785093,130.41,130.33,30.1]
[1744734401629,7.6699,130.39,130.33,30.1]
[1744734401829,546.79975093,130.41,130.35,7.6719]
[1744734402134,7.6696,130.4,130.35,7.6719]
[1744734402330,0.03952424,130.39,130.37,7.6705]
[1744734402528,0.03952424,130.39,130.37,37.7705]
[1744734402928,0.03952424,130.39,130.36,0.05224141]
[1744734403129,0.03952424,130.39,130.36,30.15224141]
[1744734403632,0.03952424,130.39,130.36,37.82354141]
[1744734404028,0.03952424,130.39,130.38,7.6705]
[1744734404235,358.49482247,130.45,130.36,30.15224141]
[1744734404435,358.49482247,130.45,130.36,30.1]
[1744734405234,358.49482247,130.45,130.39,0.0558833]
[1744734405426,7.6682,130.42,130.39,0.0558833]
[1744734406234,358.49482247,130.45,130.39,0.0558833]
[1744734406633,358.49482247,130.44,130.34,552.54]
[1744734406838,380.1354538,130.43,130.35,30.08]
[1744734407136,30.08,130.42,130.34,7.6727]
[1744734407333,30.08,130.42,130.33,30.08]
[1744734407637,0.05308516,130.39,130.36,0.05744054]
[1744734407836,7.6717,130.36,130.33,37.7532]
[1744734408036,7.6717,130.36,130.33,30.08]
[1744734408439,1.9864,130.38,130.33,30.08]
[1744734408639,358.49482247,130.37,130.27,552.4]
[1744734408832,0.05355978,130.33,130.31,0.04874324]
[1744734409336,0.05355978,130.33,130.32,30.08]
[1744734410036,0.05355978,130.33,130.32,37.754]
[1744734415044,0.05355978,130.33,130.31,0.04874324]
[1744734415237,0.05355978,130.33,130.25,30.08]
[1744734415435,358.49482247,130.36,130.25,30.08]
[1744734415645,358.49482247,130.36,130.27,7.6766]
[1744734415944,2.0606,130.35,130.27,7.6766]
[1744734416139,7.6753,130.3,130.25,30.08]
[1744734416337,0.05191713,130.29,130.26,0.05474461]
[1744734416543,0.05191713,130.29,130.27,7.6766]
[1744734417244,7.72771713,130.29,130.27,7.6766]
[1744734417845,7.6769,130.28,130.26,0.05474461]
[1744734418046,0.05191713,130.29,130.26,0.05474461]
[1744734418235,2.1401,130.28,130.24,30.08]
[1744734418441,2.0606,130.27,130.24,30.08]
[1744734418746,2.0606,130.27,130.21,30.08]
[1744734419045,7.6788,130.24,130.21,30.08]
[1744734419242,7.73206501,130.24,130.21,30.13460204]
[1744734419442,7.73206501,130.24,130.21,37.81470204]
[1744734420249,0.05326501,130.24,130.21,0.05460204]
[1744734420748,7.6796,130.23,130.21,0.05460204]
[1744734421148,0.05326501,130.24,130.21,0.05460204]
[1744734421749,7.6793,130.23,130.21,0.05460204]
[1744734422447,7.6799,130.22,130.21,0.05460204]
[1744734423950,7.6796,130.23,130.21,0.05460204]
[1744734426054,7.6796,130.23,130.21,7.73500204]
[1744734426256,7.6796,130.23,130.21,0.05460204]
[1744734427355,7.6799,130.22,130.21,0.05460204]
[1744734427752,0.05326501,130.24,130.18,30.08]
[1744734427954,7.6816,130.19,130.18,30.08]
[1744734428456,7.6816,130.19,130.16,7.6833]
[1744734428652,7.6823,130.18,130.16,0.05005526]
[1744734428852,0.05109304,130.19,130.16,0.05005526]
[1744734429156,7.73299304,130.19,130.16,7.73305526]
[1744734429956,7.73299304,130.19,130.16,0.05005526]
[1744734429957,0.05109304,130.19,130.16,0.05005526]
[1744734430756,0.05109304,130.19,130.18,7.6822]
[1744734431258,358.49482247,130.24,130.16,0.05005526]
[1744734431454,2.0743,130.26,130.15,30.1]
[1744734432157,0.05476853,130.22,130.19,0.050982]
[1744734432353,0.05476853,130.22,130.2,30.1]
[1744734432560,358.49482247,130.28,130.2,36.3026]
[1744734432761,7.6773,130.27,130.2,36.3026]
[1744734433161,366.17142247,130.28,130.2,36.3026]
[1744734433361,358.49482247,130.28,130.2,36.3026]
[1744734433563,0.05898114,130.25,130.23,0.05183048]
[1744734434363,0.05898114,130.25,130.24,37.7787]
[1744734434851,2.1218,130.31,130.26,7.6775]
[1744734435262,7.6761,130.29,130.26,7.6775]
[1744734435463,2.1218,130.31,130.24,30.1]
[1744734435766,7.6734,130.33,130.24,30.1]
[1744734435957,0.05277057,130.3,130.28,7.6759]
[1744734436158,0.05277057,130.3,130.28,30.1512965]
[1744734436557,0.05277057,130.3,130.29,7.6758]
[1744734436961,4.2832,130.35,130.28,30.1512965]
[1744734437162,7.6729,130.34,130.31,7.6743]
[1744734437462,4.2832,130.35,130.28,30.1]
[1744734437653,7.6731,130.34,130.3,7.6748]
[1744734437858,7.6731,130.34,130.28,30.1]
[1744734438054,0.05122417,130.32,130.3,0.05881926]
[1744734438363,0.05122417,130.32,130.31,7.6746]
[1744734438766,0.05122417,130.32,130.31,37.7746]
[1744734439161,0.05122417,130.32,130.31,30.1]
[1744734439563,0.05122417,130.32,130.3,0.05881926]
[1744734439971,7.6746,130.31,130.3,0.05881926]
[1744734440569,0.05122417,130.32,130.28,30.08]
[1744734441165,7.6757,130.3,130.28,30.08]
[1744734441367,0.05122417,130.32,130.28,30.08]
[1744734441869,7.6756,130.3,130.29,0.05395305]
[1744734442870,4.11,130.31,130.24,30.08]
[1744734443068,2.101,130.3,130.24,30.08]
[1744734443271,7.6766,130.28,130.24,30.08]
[1744734443474,7.6766,130.28,130.24,37.7583]
[1744734443881,0.05052829,130.27,130.25,0.057483]
[1744734444375,7.72762829,130.27,130.25,0.057483]
[1744734444872,7.6775,130.26,130.25,0.057483]
[1744734446668,7.72772829,130.27,130.25,0.057483]
[1744734446876,0.05052829,130.27,130.25,0.057483]
[1744734447872,0.05052829,130.27,130.25,7.735483]
[1744734448676,0.05052829,130.27,130.26,7.6775]
[1744734449173,7.72762829,130.27,130.25,0.057483]
[1744734449372,0.05052829,130.27,130.25,0.057483]
[1744734449872,0.05052829,130.27,130.25,7.735283]
[1744734450074,0.05052829,130.27,130.25,0.057483]
[1744734450466,358.49482247,130.31,130.29,7.6754]
[1744734450667,7.6743,130.32,130.29,37.7754]
[1744734451478,7.72461806,130.32,130.29,37.82958816]
[1744734452379,7.72461806,130.32,130.3,7.6751]
[1744734453179,7.72461806,130.32,130.29,37.82968816]
[1744734453580,7.72461806,130.32,130.29,30.15418816]
[1744734453776,7.72461806,130.32,130.29,37.82968816]
[1744734454481,7.72461806,130.32,130.3,7.6751]
[1744734455183,7.72461806,130.32,130.29,37.82968816]
[1744734455384,0.05031806,130.32,130.29,30.15418816]
[1744734455682,0.05031806,130.32,130.29,0.05418816]
[1744734456081,7.6752,130.3,130.29,0.05418816]
[1744734457486,7.675,130.31,130.29,0.05418816]
[1744734457691,0.05031806,130.32,130.29,0.05418816]
[1744734458186,7.6746,130.31,130.29,0.05418816]
[1744734458388,0.05031806,130.32,130.29,7.72988816]
[1744734458587,0.05031806,130.32,130.29,0.05418816]
[1744734458987,7.6746,130.31,130.29,0.05418816]
[1744734459585,7.72461806,130.32,130.29,7.72978816]
[1744734460589,7.6746,130.31,130.29,7.72978816]
[1744734460792,7.6746,130.31,130.29,0.05418816]
[1744734463390,7.6752,130.3,130.29,0.05418816]
[1744734463790,0.05031806,130.32,130.23,30.08]
[1744734464089,7.6776,130.26,130.23,30.08]
[1744734464289,358.49482247,130.31,130.23,30.08]
[1744734464489,7.6772,130.27,130.24,7.6784]
[1744734464684,0.04953674,130.27,130.24,7.73127102]
[1744734464990,7.6778,130.26,130.24,0.05287102]
[1744734465790,7.6781,130.25,130.24,0.05287102]
[1744734466487,7.72693674,130.27,130.24,0.05287102]
[1744734467191,7.6775,130.26,130.24,7.73127102]
[1744734467492,0.04953674,130.27,130.24,7.73127102]
[1744734467682,0.04953674,130.27,130.24,0.05287102]
[1744734467882,7.72673674,130.27,130.24,0.05287102]
[1744734468188,0.04953674,130.27,130.24,0.05287102]
[1744734468390,0.04953674,130.27,130.25,7.6781]
[1744734468993,7.72673674,130.27,130.25,7.6781]
[1744734469193,7.72673674,130.27,130.24,7.73137102]
[1744734469390,0.04953674,130.27,130.24,7.73137102]
[1744734470196,7.6776,130.26,130.24,7.73137102]
[1744734472202,7.72673674,130.27,130.25,7.678]
[1744734472501,0.04953674,130.27,130.24,0.05287102]
[1744734472893,0.04953674,130.27,130.26,7.6775]
[1744734474695,2.0762,130.34,130.24,4.16177102]
[1744734474895,2.0762,130.34,130.25,2.0634]
[1744734475201,7.6742,130.32,130.3,7.6751]
[1744734475701,7.73107527,130.32,130.3,7.7325303]
[1744734476106,0.05687527,130.32,130.31,7.6746]
[1744734477403,0.05687527,130.32,130.3,7.7322303]
[1744734477797,0.05687527,130.32,130.3,0.0574303]
[1744734478406,7.6746,130.31,130.3,0.0574303]
[1744734479307,7.6765,130.28,130.26,30.08]
[1744734479603,358.49482247,130.34,130.26,30.08]
[1744734479804,7.6755,130.3,130.28,7.6761]
[1744734480306,7.72888791,130.3,130.28,7.73068072]
[1744734481002,0.05338791,130.3,130.29,7.6758]
[1744734481706,0.05338791,130.3,130.28,0.05458072]
[1744734481902,7.72858791,130.3,130.28,7.73058072]
[1744734482106,0.05338791,130.3,130.28,7.73058072]
[1744734483608,0.05338791,130.3,130.29,7.6758]
[1744734483910,0.05338791,130.3,130.28,7.73068072]
[1744734484115,0.05338791,130.3,130.28,0.05458072]
[1744734484412,7.6713,130.37,130.34,7.6725]
[1744734484605,7.6713,130.37,130.34,30.08]
[1744734485001,7.6718,130.36,130.34,30.08]
[1744734485206,358.49482247,130.41,130.34,30.08]
[1744734485512,0.05475522,130.39,130.36,2.61e-05]
[1744734485711,0.05475522,130.39,130.3,30.08]
[1744734485907,358.49482247,130.38,130.3,30.08]
[1744734486206,358.49482247,130.38,130.31,7.6742]
[1744734486601,358.49482247,130.38,130.3,30.08]
[1744734486900,0.05795343,130.35,130.33,0.05722549]
[1744734488613,7.73045343,130.35,130.33,0.05722549]
[1744734489606,0.05795343,130.35,130.33,7.73062549]
[1744734489914,0.05795343,130.35,130.33,0.05722549]
[1744734490108,0.05795343,130.35,130.33,7.73032549]
[1744734490811,7.73025343,130.35,130.33,0.05722549]
[1744734491010,0.05795343,130.35,130.33,0.05722549]
[1744734491423,7.73045343,130.35,130.33,7.73052549]
[1744734492218,7.73045343,130.35,130.33,0.05722549]
[1744734492422,7.6728,130.34,130.33,0.05722549]
[1744734495023,7.73065343,130.35,130.33,0.05722549]
[1744734495222,0.05795343,130.35,130.33,0.05722549]
[1744734495823,7.6728,130.34,130.33,0.05722549]
[1744734496225,0.05795343,130.35,130.33,0.05722549]
[1744734496418,0.05795343,130.35,130.34,37.7328]
[1744734496922,0.05795343,130.35,130.34,30.06]
[1744734499228,7.73015343,130.35,130.34,30.06]
[1744734500927,7.6728,130.34,130.33,0.05722549]
[1744734503028,7.73045343,130.35,130.33,0.05722549]
[1744734504223,7.73045343,130.35,130.33,7.73062549]
[1744734505028,7.73045343,130.35,130.33,0.05722549]
[1744734505528,7.6728,130.34,130.33,0.05722549]
[1744734506028,0.05795343,130.35,130.33,0.05722549]
[1744734506428,7.73055343,130.35,130.33,7.73062549]
[1744734509128,0.05795343,130.35,130.33,7.73062549]
[1744734509629,0.05795343,130.35,130.34,7.6728]
[1744734514535,0.05795343,130.35,130.33,0.05722549]
[1744734514935,0.05795343,130.35,130.33,7.73022549]
[1744734515133,0.05795343,130.35,130.33,0.05722549]
[1744734516037,7.6728,130.34,130.33,0.05722549]
[1744734516334,0.05795343,130.35,130.33,0.05722549]
[1744734516535,7.73065343,130.35,130.33,7.73062549]
[1744734517435,7.73065343,130.35,130.33,0.05722549]
[1744734517734,0.05795343,130.35,130.33,0.05722549]
[1744734518838,0.05795343,130.35,130.34,7.6728]
[1744734520137,4.3322,130.42,130.33,0.05722549]
[1744734520331,7.6698,130.4,130.32,6.3923]
[1744734521035,0.05328293,130.37,130.35,0.04927063]
[1744734521238,0.05328293,130.37,130.36,30.04]
[1744734521539,0.05328293,130.37,130.36,37.7116]
[1744734525038,0.05328293,130.37,130.29,30.04]
[1744734525238,358.49482247,130.36,130.29,30.04]
[1744734525439,2.1176,130.35,130.29,30.04]
[1744734525643,7.6742,130.32,130.29,37.7155]
[1744734525937,0.0577366,130.32,130.29,30.09765608]
[1744734526534,0.0577366,130.32,130.31,7.6741]
[1744734526938,1.9766,130.37,130.29,30.09765608]
[1744734526939,2.1176,130.39,130.29,30.09765608]
[1744734527138,7.6722,130.36,130.33,7.6731]
[1744734527332,7.6722,130.36,130.33,37.7131]
[1744734527534,2.1176,130.39,130.33,30.04]
[1744734527735,7.6711,130.37,130.34,7.6724]
[1744734527934,7.7239315,130.37,130.35,0.05478641]
[1744734528137,0.0528315,130.37,130.35,0.05478641]
[1744734528338,7.6716,130.36,130.35,0.05478641]
[1744734528538,0.0528315,130.37,130.35,0.05478641]
[1744734528738,7.7243315,130.37,130.35,0.05478641]
[1744734529046,0.0528315,130.37,130.35,0.05478641]
[1744734529246,0.0528315,130.37,130.35,7.72668641]
[1744734530448,0.0528315,130.37,130.35,0.05478641]
[1744734531140,7.6716,130.36,130.31,7.6742]
[1744734531346,0.0528315,130.37,130.31,7.6742]
[1744734531547,7.6737,130.33,130.31,7.6742]
[1744734532044,7.6743,130.32,130.3,30.04]
[1744734532245,7.72791814,130.32,130.3,30.09663338]
[1744734533345,358.49482247,130.42,130.3,30.09663338]
[1744734533648,2.1342,130.4,130.3,30.04]
[1744734533847,2.1342,130.4,130.31,7.6743]
[1744734534245,2.1342,130.4,130.3,30.04]
[1744734534451,0.05781637,130.36,130.34,0.05645498]
[1744734535149,0.05781637,130.36,130.34,7.72925498]
[1744734535449,0.05781637,130.36,130.34,30.09645498]
[1744734535849,0.05781637,130.36,130.35,7.6722]
[1744734538053,358.49482247,130.41,130.38,7.6701]
[1744734538252,358.49482247,130.41,130.38,37.7101]
[1744734538553,366.16382247,130.41,130.38,30.04]
[1744734539055,366.21347752,130.41,130.38,30.09754882]
[1744734539450,366.21347752,130.41,130.38,0.05754882]
[1744734539649,7.6699,130.39,130.38,0.05754882]
[1744734540655,358.54447752,130.41,130.33,30.04]
[1744734540858,358.49482247,130.4,130.33,30.04]
[1744734541055,7.6718,130.36,130.33,30.04]
[1744734541459,7.7268638,130.36,130.33,30.0980091]
[1744734541655,0.0550638,130.36,130.33,30.0980091]
[1744734542361,0.0550638,130.36,130.35,7.6722]
[1744734543160,2.1701,130.44,130.4,7.6693]
[1744734543358,9.8373,130.44,130.4,30.04]
[1744734543557,358.49482247,130.46,130.4,30.04]
[1744734543759,358.49482247,130.46,130.42,7.668]
[1744734544062,7.6668,130.45,130.4,30.04]
[1744734544261,0.05093012,130.44,130.41,7.7172796]
[1744734544556,0.05093012,130.44,130.41,0.0488796]
[1744734544756,0.05093012,130.44,130.42,7.6677]
[1744734545155,0.05093012,130.44,130.41,0.0488796]
[1744734545357,0.05093012,130.44,130.43,7.6675]
[1744734546957,0.05093012,130.44,130.41,0.0488796]
[1744734549361,0.05093012,130.44,130.42,7.6677]
[1744734549661,0.05093012,130.44,130.41,0.0488796]
[1744734549862,0.05093012,130.44,130.41,7.7172796]
[1744734550058,7.71813012,130.44,130.41,7.7172796]
[1744734551164,0.05093012,130.44,130.42,7.668]
[1744734551560,0.05093012,130.44,130.41,0.0488796]
[1744734551760,0.05093012,130.44,130.43,7.6675]
[1744734551960,0.05093012,130.44,130.41,0.0488796]
[1744734553162,0.05093012,130.44,130.43,7.6675]
[1744734554363,0.05093012,130.44,130.42,7.6678]
[1744734555163,0.05093012,130.44,130.41,7.7172796]
[1744734555560,0.05093012,130.44,130.41,0.0488796]
[1744734555758,0.05093012,130.44,130.42,7.6678]
[1744734556264,0.05093012,130.44,130.41,0.0488796]
[1744734558166,0.05093012,130.44,130.43,7.6675]
[1744734558567,358.49482247,130.55,130.43,581.19197413]
[1744734558865,358.49482247,130.55,130.44,34.1021]
[1744734559065,7.6629,130.51,130.44,34.1021]
[1744734559268,358.49482247,130.55,130.49,7.6639]
[1744734559467,358.49482247,130.55,130.51,0.04931252]
[1744734560059,7.6622,130.52,130.51,0.04931252]
[1744734561065,7.6644,130.49,130.48,30.0]
[1744734562667,7.6644,130.49,130.47,30.0493765]
[1744734562871,7.6646,130.48,130.47,0.0493765]
[1744734563859,7.6671,130.44,130.43,30.0]
[1744734564266,358.49482247,130.49,130.4,37.6689]
[1744734564466,358.49482247,130.48,130.4,37.6689]
[1744734564967,0.05442097,130.45,130.43,0.05169388]
[1744734565164,7.6669,130.44,130.43,0.05169388]
[1744734568969,0.05442097,130.45,130.43,0.05169388]
[1744734569169,0.05442097,130.45,130.44,30.0]
[1744734569471,0.05442097,130.45,130.44,37.6669]
[1744734571971,366.15942247,130.48,130.46,7.6657]
[1744734572968,366.15942247,130.48,130.45,7.6661]
[1744734573271,7.6652,130.47,130.46,0.05336946]
[1744734575674,7.6663,130.45,130.44,30.0]
[1744734576076,7.6685,130.42,130.41,30.0]
[1744734577176,0.05449342,130.43,130.41,30.0]
[1744734577875,7.72229342,130.43,130.41,30.0]
[1744734578076,0.05449342,130.43,130.41,30.0]
[1744734578477,7.6681,130.42,130.41,30.0]
[1744734578875,0.05449342,130.43,130.41,30.0]
[1744734579076,7.72229342,130.43,130.41,30.0]
[1744734579376,0.05449342,130.43,130.41,30.0]
[1744734579573,7.72229342,130.43,130.41,30.0]
[1744734580777,7.6681,130.42,130.41,30.0]
[1744734580974,7.6681,130.42,130.4,37.7182318]
[1744734581477,7.72229342,130.43,130.4,37.7182318]
[1744734582280,7.6682,130.42,130.4,37.7182318]
[1744734582879,7.6687,130.41,130.4,30.0493318]
[1744734583178,0.05449342,130.43,130.4,30.0493318]
[1744734583381,7.6687,130.41,130.4,30.0493318]
[1744734583583,7.6687,130.41,130.4,0.0493318]
[1744734584785,0.05449342,130.43,130.4,0.0493318]
[1744734586184,0.05449342,130.43,130.42,7.6681]
[1744734588586,0.05449342,130.43,130.41,7.6684]
[1744734588786,0.05449342,130.43,130.4,2.1268318]
[1744734589087,0.05449342,130.43,130.42,7.6681]
[1744734589687,358.49482247,130.48,130.45,7.6662]
[1744734589882,4.0985,130.51,130.45,37.6662]
[1744734590081,4.0985,130.51,130.45,30.0]
[1744734590281,4.0985,130.51,130.46,7.6655]
[1744734590479,4.0985,130.51,130.45,30.0]
[1744734590691,0.04669588,130.49,130.47,0.05501177]
[1744734591283,7.71109588,130.49,130.47,0.05501177]
[1744734591587,0.04669588,130.49,130.47,0.05501177]
[1744734591888,7.6646,130.48,130.47,0.05501177]
[1744734600397,0.04669588,130.49,130.47,0.05501177]
[1744734600698,0.04669588,130.49,130.48,7.6646]
[1744734600892,0.04669588,130.49,130.47,0.05501177]
[1744734601796,7.6646,130.48,130.47,0.05501177]
[1744734603104,0.04669588,130.49,130.47,0.05501177]
[1744734603401,7.6646,130.48,130.47,0.05501177]
[1744734605601,0.04669588,130.49,130.44,29.98]
[1744734605898,0.04669588,130.49,130.44,37.6465]
[1744734606099,7.6654,130.47,130.44,37.6465]
[1744734606601,7.6654,130.47,130.44,37.70189226]
[1744734606798,7.6654,130.47,130.45,7.6663]
[1744734607200,7.6659,130.46,130.44,30.03539226]
[1744734607400,7.724712,130.46,130.44,30.03539226]
[1744734607596,0.058812,130.46,130.44,37.70199226]
[1744734608600,0.058812,130.46,130.45,7.6663]
[1744734609499,0.058812,130.46,130.44,37.70199226]
[1744734609701,7.724612,130.46,130.44,37.70199226]
[1744734609900,0.058812,130.46,130.44,30.03539226]
[1744734610898,7.724912,130.46,130.44,30.03539226]
[1744734611398,7.724912,130.46,130.44,37.70229226]
[1744734611590,7.724912,130.46,130.44,30.03539226]
[1744734612601,0.058812,130.46,130.44,37.70229226]
[1744734613404,7.724612,130.46,130.44,37.70229226]
[1744734613602,0.058812,130.46,130.44,37.70229226]
[1744734613900,0.058812,130.46,130.44,30.03539226]
[1744734614291,0.058812,130.46,130.44,37.70179226]
[1744734614496,0.058812,130.46,130.44,30.03539226]
[1744734614700,358.49482247,130.52,130.47,7.6647]
[1744734614897,358.49482247,130.52,130.48,29.96]
[1744734615098,7.6638,130.5,130.48,29.96]
[1744734615298,358.49482247,130.52,130.48,29.96]
[1744734615700,7.664,130.49,130.48,29.96]
[1744734616297,7.6646,130.48,130.47,0.04928931]
[1744734616496,0.04289565,130.51,130.43,29.96]
[1744734616497,13.46549891,130.5,130.43,29.96]
[1744734616702,13.46549891,130.47,130.39,29.96]
[1744734616903,7.6686,130.42,130.39,37.6296]
[1744734617200,1.9895,130.46,130.39,37.6296]
[1744734617504,7.6679,130.43,130.41,0.05703779]
[1744734618098,7.71951591,130.44,130.41,7.72533779]
[1744734618699,7.71951591,130.44,130.42,7.6681]
[1744734618899,0.05241591,130.44,130.42,7.6681]
[1744734619499,0.05241591,130.44,130.43,37.6475]
[1744734619701,360.52582247,130.49,130.43,29.98]
[1744734619998,7.6649,130.48,130.45,7.6661]
[1744734620805,7.6652,130.47,130.45,7.71543381]
[1744734621404,7.70466905,130.48,130.45,7.71543381]
[1744734622508,7.6652,130.47,130.45,0.04933381]
[1744734622707,0.03976905,130.48,130.45,0.04933381]
[1744734623103,7.6657,130.46,130.45,0.04933381]
[1744734623504,7.6657,130.46,130.45,3.381e-05]
[1744734623706,6.13026905,130.48,130.4,29.98]
[1744734624008,6.0905,130.48,130.4,29.98]
[1744734624706,7.6681,130.43,130.4,37.649]
[1744734624913,7.6681,130.43,130.4,37.70492306]
[1744734626814,0.055137,130.45,130.4,30.03592306]
[1744734627008,0.055137,130.45,130.4,0.05592306]
[1744734627611,7.6687,130.41,130.4,0.05592306]
[1744734629103,0.05008746,130.42,130.35,29.98]
[1744734629311,2.0625,130.4,130.35,37.6519]
[1744734629506,7.6708,130.38,130.35,37.6519]
[1744734630011,7.72967706,130.38,130.35,37.70204399]
[1744734631514,0.05897706,130.38,130.35,30.03014399]
[1744734633607,358.49482247,130.43,130.36,2.1199]
[1744734633812,7.6682,130.42,130.39,7.6695]
[1744734634110,7.6682,130.42,130.4,29.98]
[1744734634717,358.49482247,130.49,130.4,30.0382731]
[1744734634915,358.49482247,130.49,130.4,29.98]
[1744734635118,7.6665,130.45,130.42,7.6678]
[1744734635314,358.49482247,130.49,130.4,29.98]
[1744734635820,0.03657761,130.46,130.43,0.05725024]
[1744734636712,7.70267761,130.46,130.43,0.05725024]
[1744734636918,7.70267761,130.46,130.43,7.72445024]
[1744734637115,0.03657761,130.46,130.43,7.72445024]
[1744734637418,7.6666,130.45,130.43,0.05725024]
[1744734638719,7.70237761,130.46,130.43,7.72445024]
[1744734639318,0.03657761,130.46,130.43,0.05725024]